Cogmind - Beta 13 @@@ ROGUE MODE // 2024.06.01 @ 16:06:16 Player: Comet Result: Destroyed by J3-UC2(R) with Subdweller Laser Performance ------------- Evolutions (0) 0 Regions Visited (3) 600 Robots Destroyed (45) 225 Value Destroyed (647) 647 Prototype IDs (0) 0 Alien Tech Used (0) 0 Bonus (66) 66 TOTAL SCORE: 1538 Bonus ------- Follower Combat Kills 66 Cogmind --------- Core Integrity 0/250 Matter 294/300 Energy 100/100 System Corruption 1% Temperature Cool (6) Movement Treading (160) Location -10/Subcaves Parts ------- > --- POWER (1) -------- (None) > --- PROPULSION (2) --- Improved Treads Improved Treads > --- UTILITY (2) ------ Medium Storage Unit Signal Interpreter > --- WEAPON (2) ------- Battle Rifle Heavy Battle Rifle > --- INVENTORY (10) --- Improved Treads Disposable Heat Sink Improved Terrain Scanner Propulsion Shielding Utility Shielding Authchip [R/Combat] Authchip [Device] Authchip [Processor] Grenade Launcher Hammer Peak State ------------ > --- POWER ------------ Light Nuclear Core > --- PROPULSION ------- Improved Treads Improved Treads > --- UTILITY ---------- Medium Storage Unit Improved Terrain Scanner > --- WEAPON ----------- Improved Light Cannon Improved Light Cannon > --- INVENTORY -------- Ion Engine Light Treads Light Treads Improved Treads Signal Interpreter Authchip [R/Combat] Authchip [Device] Authchip [Processor] Grenade Launcher Mining Laser [Rating: 17] Favorites ----------- Power Ion Engine Engine Ion Engine Power Core Light Nuclear Core Propulsion Improved Treads Treads Improved Treads Utility Medium Storage Unit Device Improved Terrain Scanner Storage Medium Storage Unit Processor Signal Interpreter Weapon Improved Light Cannon Ballistic Gun Assault Rifle Ballistic Cannon Improved Light Cannon Launcher Grenade Launcher Build | -11 -10 -10 -10 ------- Run | Yrd Mat Min Sub Slots Evolved . | . . . . Power . | . . . . Propulsion . | . . . . Utility . | . . . . Weapon . | . . . . Parts Attached 32 | 7 12 4 9 Power 6 | 1 3 . 2 Engine 4 | 1 1 . 2 Core 2 | . 2 . . Reactor . | . . . . Propulsion 7 | 2 4 . 1 Treads 7 | 2 4 . 1 Leg . | . . . . Wheel . | . . . . Hover . | . . . . Flight . | . . . . Utility 9 | 2 1 4 2 Device 4 | 1 . 2 1 Storage 4 | 1 1 1 1 Processor 1 | . . 1 . Hackware . | . . . . Protection . | . . . . Artifact . | . . . . Weapon 10 | 2 4 . 4 Energy Gun . | . . . . Energy Cannon . | . . . . Ballistic Gun 6 | 2 2 . 2 Ballistic Cannon 3 | . 2 . 1 Launcher 1 | . . . 1 Special Weapon . | . . . . Impact Weapon . | . . . . Slashing Weapon . | . . . . Piercing Weapon . | . . . . Special Melee Weapon . | . . . . Unidentified Prototypes . | . . . . Parts Lost 2 | . 1 . 1 Power 1 | . 1 . . Propulsion 1 | . . . 1 Utility . | . . . . Weapon . | . . . . Highest Loss Streak 1 | . 1 . 1 To Critical Strikes . | . . . . Average Slot Usage (%) 98 | . 98 100 89 Engine 9 | . 5 14 4 Core 3 | . 8 . . Treads 27 | . 27 28 27 Device 10 | . 14 10 . Storage 14 | . 14 14 14 Processor 3 | . . 3 14 Ballistic Gun 10 | . 17 . 24 Ballistic Cannon 17 | . 10 28 2 Naked Turns . | . . . . Heaviest Build 24 | 13 24 24 23 Greatest Support 46 | 40 46 46 46 Greatest Overweight (x) . | . . . . Average Overweight (x) . | . . . . Largest Inventory Capacity 10 | 8 10 10 10 Average Capacity 9 | 7 9 10 9 Most Carried 10 | 4 10 10 10 Average Carried 8 | 1 8 10 9 Final Capacity 10 | 8 10 10 10 Final Carried 10 | 4 10 10 10 Class Distribution -------------------- 100% | Mutant Dominant Class ---------------- Mutant | -10/Materials Mutant | -10/Mines Mutant | -10/Subcaves Resources | -11 -10 -10 -10 ----------- Run | Yrd Mat Min Sub Matter Collected 1480 | 390 461 206 423 Remotely . | . . . . Salvage Created 1126 | 179 565 74 308 Parts 94 | 15 42 14 23 Haulers Intercepted 2 | . 2 . . Recyclers Shooed 2 | . 2 . . Parts Field Recycled . | . . . . Retrieved Matter . | . . . . Parts Self-Destructed 19 | . . . 19 Prevented . | . . . . Kills | -11 -10 -10 -10 ------- Run | Yrd Mat Min Sub Combat Hostiles Destroyed 20 | . 9 . 11 Guns 13 | . 6 . 7 Cannons 6 | . 2 . 4 AOE 1 | . 1 . . Classes Destroyed 10 | 3 5 . 2 Worker 4 | 1 2 1 . Tunneler 8 | 4 1 3 . Hauler 2 | . 2 . . Recycler 4 | 1 2 1 . Operator 2 | . 2 . . Turret 2 | . . . 2 Watcher 3 | . 3 . . Swarmer 13 | . 6 . 7 Grunt 4 | . 3 . 1 Subdweller 3 | . . . 3 Best Kill Streak 6 | 3 4 2 6 Combat Bots Only 4 | . 3 . 4 Max Kills in Single Turn 3 | 1 3 1 2 Gunslinging 1 | . . . 1 Exploded 1 | . 1 . . Melee . | . . . . Uniques/NPCs Destroyed . | . . . . Combat | -11 -10 -10 -10 -------- Run | Yrd Mat Min Sub Hostile Shots Fired 168 | . 75 4 89 Missed 49 | . 22 2 25 Damage Taken 1260 | . 548 32 680 Core 258 | . 71 15 172 Absorbed by Shields . | . . . . Regen/Repaired (Parts) 173 | . 173 . . Core Remaining (%) 100 | 100 . . . Volleys Fired 135 | 20 65 9 41 Largest 2 | 2 2 2 2 Hottest 78 | 40 78 78 78 Shots Fired 269 | 40 127 20 82 Gun 189 | 40 101 . 48 Cannon 71 | . 26 20 25 Launcher 9 | . . . 9 Special . | . . . . Kinetic 260 | 40 127 20 73 Thermal . | . . . . Explosive 9 | . . . 9 Electromagnetic . | . . . . Robot Hit Streak 14 | 5 7 7 14 Robot Miss Streak 4 | 3 3 2 4 Penetration Max . | . . . . Secondary Targets 1 | . . . 1 Max Gunslinging Chain 1 | . . . 1 Shots Hit Robots 137 | 16 65 9 47 Core Hits 71 | 7 31 5 28 Critical Kills . | . . . . Critical Parts Destroyed 1 | . . . 1 Critical Strikes 1 | . . . 1 Destroy 1 | . . . 1 Melee Attacks . | . . . . Impact . | . . . . Slashing . | . . . . Piercing . | . . . . Sneak Attacks . | . . . . Combat Hostiles . | . . . . Follow-up Attacks . | . . . . Damage Inflicted 2416 | 261 971 191 993 Guns 1610 | 261 688 . 661 Cannons 576 | . 219 177 180 Explosions 216 | . 64 . 152 Melee . | . . . . Ramming 14 | . . 14 . Kinetic 2186 | 261 907 177 841 Thermal . | . . . . Explosive 152 | . . . 152 Electromagnetic 64 | . 64 . . Impact . | . . . . Slashing . | . . . . Piercing . | . . . . Highest Corruption 1 | . 1 1 1 Average Corruption 1 | . 1 1 1 Corruption Purged . | . . . . Corruption Blocked . | . . . . Effects 24 | . 3 18 3 Message Errors 5 | . 1 3 1 Matter Fused 5 | . 1 4 . Heat Flow Errors 3 | . . 2 1 Energy Discharges 1 | . 1 . . Parts Rejected 1 | . . . 1 Parts Fused 2 | . . 2 . Data Loss (minor) 2 | . . 2 . Data Loss (major) 1 | . . 1 . Misfires 2 | . . 2 . Alerts 2 | . . 2 . Overload Shots . | . . . . Overflow Damage 18 | . 18 . . Projectiles 18 | . 18 . . Explosions . | . . . . Melee . | . . . . Knockbacks 6 | . 3 1 2 Impact . | . . . . Kinetic 6 | . 3 1 2 Secondary . | . . . . Self-Inflicted Damage . | . . . . Shots . | . . . . Rammed 2 | . . 2 . Targets Rammed 2 | . . 2 . Kicked . | . . . . Crushed . | . . . . Highest Temperature 266 | . 77 266 251 Average Temperature 49 | . 35 53 141 Received Heat Transfer 336 | . 99 27 210 Siege Activations . | . . . . Robots Corrupted . | . . . . Combat Hostiles . | . . . . Parts Fried . | . . . . Impact Corruptions . | . . . . Robots Melted . | . . . . Combat Hostiles . | . . . . Parts Melted . | . . . . Heat Transferred . | . . . . Parts Sabotaged . | . . . . Parts Stolen . | . . . . Parts Stripped . | . . . . Power Chain Reactions . | . . . . Alert | -11 -10 -10 -10 ------- Run | Yrd Mat Min Sub Peak Influence 172 | 30 172 59 . Initial 19 | . 19 19 . Average 31 | 8 59 11 . Maximum Alert Level . | . . . . Low Security (%) 100 | 100 100 100 . Level 1 . | . . . . Level 2 . | . . . . Level 3 . | . . . . Level 4 . | . . . . Level 5 . | . . . . High Security . | . . . . Max Security . | . . . . Squads Dispatched 2 | . 2 . . Investigation 1 | . 1 . . Extermination . | . . . . Reinforcement 1 | . 1 . . Assault . | . . . . Garrison . | . . . . Intercept . | . . . . Searches Triggered . | . . . . Construction Impeded . | . . . . Haulers Reinforced . | . . . . Active Scanning Responses . | . . . . Cargo Convoy Interrupts . | . . . . Stealth | -11 -10 -10 -10 --------- Run | Yrd Mat Min Sub Distress Signals 1 | . 1 . . Communications Jammed . | . . . . Distress Signals . | . . . . Times Spotted 62 | . 18 2 42 Peak Tracking Total 6 | . 6 2 6 Tactical Retreats 3 | . . . 3 Traps | -11 -10 -10 -10 ------- Run | Yrd Mat Min Sub Traps Triggered 3 | . 3 . . Indirectly . | . . . . Trap Hack Attempts . | . . . . Triggered . | . . . . Disarmed . | . . . . Reprogrammed . | . . . . Reused . | . . . . Traps Extracted . | . . . . Installed . | . . . . Triggered 3 | . . . 3 Machines | -11 -10 -10 -10 ---------- Run | Yrd Mat Min Sub Machines Disabled 6 | . 3 . 3 Max in Single Turn 2 | . 2 . 1 Machines Repaired . | . . . . Machines Dismantled . | . . . . Machines Sabotaged . | . . . . Overloaded Fab Kills . | . . . . Hacking | -11 -10 -10 -10 --------- Run | Yrd Mat Min Sub Machines Accessed 6 | . 6 . . Terminals 5 | . 5 . . Fabricators . | . . . . Repair Stations 1 | . 1 . . Recycling Units . | . . . . Scanalyzers . | . . . . Garrison Access . | . . . . Total Hacks 21 | . 21 . . Successful 8 | . 8 . . Failed 12 | . 12 . . Catastrophic 3 | . 3 . . Database Lockouts 1 | . 1 . . Manual 8 | . 8 . . Terminals 14 | . 14 . . Fabricators . | . . . . Repair Stations 7 | . 7 . . Recycling Units . | . . . . Scanalyzers . | . . . . Garrison Access . | . . . . Terminal Hacks 2 | . 2 . . Part Schematic 1 | . 1 . . Hauler Manifests 1 | . 1 . . Fabricator Hacks . | . . . . Repair Station Hacks 6 | . 6 . . Scan Component 3 | . 3 . . Repair 3 | . 3 . . Recycling Unit Hacks . | . . . . Scanalyzer . | . . . . Garrison Access Hacks . | . . . . Unauthorized Hacks . | . . . . Terminals . | . . . . Fabricators . | . . . . Repair Stations . | . . . . Recycling Units . | . . . . Scanalyzers . | . . . . Garrison Access . | . . . . Data Cores Recovered . | . . . . Used . | . . . . Hacking Detections 5 | . 5 . . Full Trace Events 5 | . 5 . . Feedback Events . | . . . . Feedback Blocked . | . . . . Robot Schematics Acquired . | . . . . Robots Built . | . . . . Authchips . | . . . . Time . | . . . . Total Robot Build Rating . | . . . . Part Schematics Acquired 1 | . 1 . . Parts Built . | . . . . Authchips . | . . . . Time . | . . . . Total Part Build Rating . | . . . . Parts Repaired 3 | . 3 . . Time 84 | . 84 . . Parts Recycled . | . . . . Recycled Matter . | . . . . Retrieved Matter . | . . . . Retrieved Components . | . . . . Parts Scanalyzed . | . . . . Part Schematics Acquired . | . . . . Parts Damaged . | . . . . Bothacking | -11 -10 -10 -10 ------------ Run | Yrd Mat Min Sub Used RIF Installer . | . . . . Robots Hacked . | . . . . Non-combat . | . . . . Combat . | . . . . Robot Hacks Applied . | . . . . Relay Couplers Released . | . . . . Fabnet Peak Effective % . | . . . . Robots Rewired . | . . . . Allies Hacked . | . . . . Hacks Repelled . | . . . . Allies | -11 -10 -10 -10 -------- Run | Yrd Mat Min Sub Total Allies 3 | . . 3 . Largest Group 3 | . . 3 . Highest-Rated Group 40 | . . 40 . Highest-Rated Ally 16 | . . 16 . Total Orders . | . . . . Ally Attacks 15 | . . 12 3 Total Damage 189 | . . 158 31 Kills 2 | . . 2 . Allies Corrupted . | . . . . Allies Melted . | . . . . Intel | -11 -10 -10 -10 ------- Run | Yrd Mat Min Sub Robot Analysis Total . | . . . . Derelict Logs Recovered 2 | . . 1 1 Drone Launches . | . . . . Drone Recoveries . | . . . . Exploration | -11 -10 -10 -10 ------------- Run | Yrd Mat Min Sub Turns Passed 5231 | 274 1938 2297 722 Spaces Moved 2877 | 129 1016 1391 341 Core 5 | 5 . . . Treads 2872 | 124 1016 1391 341 Legs . | . . . . Wheels . | . . . . Hover . | . . . . Flight . | . . . . Fastest Speed 50 | 50 160 160 160 Average Speed 159 | 155 160 160 160 Slowest Speed 160 | 160 160 160 160 Overloaded Moves . | . . . . Propulsion Burnouts . | . . . . Robots Hopped . | . . . . Cave-ins Triggered . | . . . . Exploration Rate (%) 57 | 6 92 102 28 Regions Visited 3 Branch Regions 2 Pre-discovered Areas 1 | . . 1 . Known Exits Taken 1 | . . 1 . Unknown Exits Taken 2 | 1 1 . . Scrap Searched 4 | . . 1 3 Spaces Dug . | . . . . Terrain Destroyed 43 | . 1 1 41 Melee . | . . . . Projectile 6 | . 1 1 4 AOE 37 | . . . 37 Terrain Rammed . | . . . . Walls Destroyed . | . . . . Machines Disabled . | . . . . Actions | -11 -10 -10 -10 --------- Run | Yrd Mat Min Sub Total 3246 | 159 1204 1444 439 Wait 151 | . 85 32 34 Move 2874 | 128 1015 1390 341 Hop . | . . . . Pick Up 28 | 4 14 2 8 Fast Attach 20 | 7 7 2 4 Attach 3 | . 1 . 2 Detach . | . . . . Swap 9 | . 4 2 3 Drop 24 | . 13 5 6 Fire 135 | 20 65 9 41 Melee . | . . . . Ram . | . . . . Kick . | . . . . Crush 2 | . . 2 . Escape Stasis . | . . . . Rewire . | . . . . Trap . | . . . . Miscellaneous . | . . . . Route ------- -11/Scrapyard -10/Materials (discovered 4 exits: *Mat x3 / [*Min]) -10/Mines (discovered 3 exits: *Mat x2 / *Sub) -10/Subcaves (discovered 1 exit: [*Rec]) History --------- Turn | Location | Event 2 | -11/Scrapyard | Met Revision 17 3 | -11/Scrapyard | Discovered new exit (range 15) 275 | -11/Scrapyard | Entered Materials 330 | -10/Materials | Build established: Mutant 674 | -10/Materials | Repaired Assault Rifle 701 | -10/Materials | Repaired Assault Rifle 792 | -10/Materials | Discovered new exit (range 10) 1059 | -10/Materials | Discovered new exit (range 16) 1428 | -10/Materials | Discovered new exit (range 8) 1622 | -10/Materials | Central database locked down 1897 | -10/Materials | Discovered new exit (range 16) 2170 | -10/Materials | Repaired Imp. Treads 2213 | -10/Materials | Entered Mines 2220 | -10/Mines | Assisted by bots powering up and referring to "LRC-V3" 2523 | -10/Mines | A weapon hastily lodged in a ceiling crevice suddenly fell to the ground 2824 | -10/Mines | Discovered new exit (range 8) 3124 | -10/Mines | Learned location of Mines (-9) 3279 | -10/Mines | Discovered new exit (range 7) 3703 | -10/Mines | Discovered new exit (range 7) 4086 | -10/Mines | Identified exit to Subcaves 4297 | -10/Mines | Identified exit to Materials 4510 | -10/Mines | Entered Subcaves 4510 | -10/Subcaves | Accompanied by 2 allies 4510 | -10/Subcaves | Discovered new exit (range 10) 4552 | -10/Subcaves | Core integrity fell below 50% 4577 | -10/Subcaves | Shifting Twisted Machinery released Hvy. Battle Rifle 4606 | -10/Subcaves | Shifting Twisted Machinery released Battle Rifle 4697 | -10/Subcaves | Shifting Twisted Machinery released Sub. Power Source 4699 | -10/Subcaves | Shifting Twisted Machinery released Sub. Power Source 4902 | -10/Subcaves | A swath of the cavern ceiling suddenly collapsed 4962 | -10/Subcaves | Learned Materials trap positions 4991 | -10/Subcaves | Core integrity fell below 20% 5232 | -10/Subcaves | Destroyed by J3-UC2(R) with Subdweller Laser Last Messages --------------- Acquired 43 matter. Acquired 7 matter. Acquired 42 matter. MP-1LA(R) destroyed. TG-R1H(R) destroyed. WX-QR8(R) destroyed. Acquired 18 matter. Acquired 6 matter. 6J-783(R) destroyed. Acquired 6 matter. S2-HF8(R) destroyed. Acquired 18 matter. GI-WE1(O) wakes at your presence. GI-WE1(O): "LVR3C?" GI-WE1(O) collects matter. Subatomizers dissect the Disposable Heat Sink. GI-WE1(O) collects matter. GI-WE1(O) puts together Flamer. GI-WE1(O) collects matter. GI-WE1(O) puts together Flamer. Map ----- +----------------------------------------------------+ | ?????????????????????????????????????????????????? | | ?????????????????????????????????????????????????? | | ?????????????????????????????????????????????????? | | ?????????????????????????????????????????????????? | | ?????????????????????????????????????????????????? | | ?????????????????????????????????????????????????? | | ?????????????????????????????????????????????????? | | ?????????????????????????????????????????????????? | | ?????????????????????????????????????????????????? | | ?????????????????????????????????????????????????? | | ?????????????????????????????????????????????????? | | ?????????????????????????????????????????????????? | | ???????????????????????????????#?????????????????? | | ?????????????????????????????? ###?????????????? | | ?????????????????????????????? ???????????? | | ?????????????????????????????? ???????????? | | ????????????????????##???????? ????????????? | | ???????????????????## #?????? ?????????????? | | ???????????????##### #????? ??????????????? | | ???????????? ### #???? ???????????????? | | ????????????# ???# ????????????????? | | ????????????? ??? ?????????????????? | | ???????????????? ??? #??????????????????? | | ??????????????????# #?## ##?????????????????? | | ????????????????????# ###R #?????????????????? | | ?????????????????????# @R #?????????????????? | | ????????????????????## [ ##?????????????????? | | ???????????????????## ##?###??????????????? | | ??????????????????## ###?# ##?????????????? | | ??????????????????# ##??? ##????????????? | | ?????????????????# # ##??? ##???????????? | | ?????????????????# ### #??? #???????????? | | ?????????????????## #?##O##??? #???????????? | | ??????????????????###??# | #### #???????????? | | ????????????????###????## ##??????????? | | ????????????????# ##????# ##?????????? | | ???????????????## ##???# #?????????? | | ???????????????#% ##??## ## #????????? | | ??????????????## #???##### ##????????????? | | ??????????????# #####?## ###?????????????? | | ??????????????## ## ### ##???????????????? | | ???????????????## # ####????????????????? | | ????????????????## # #????????? ###?????? | | ?????????????????### ## ##???????? #?????? | | ??????????????????## # #???????# #?????? | | ??????????????????# #???????# #?????? | | ??????????????????### ### ########## ##????? | | ?????????????????#### ########" !&&%# ##???? | | ????????????????## " # [&## ##??? | | ??????????????### " & % % &## ##?? | +----------------------------------------------------+ Best States ------------- Heat Dissipation 25 Energy Generation 15 Energy Capacity 250 Matter Stores 300 Matter Capacity 300 Sight Range 16 Terrain Scan Range 16 Terrain Scan Density 10 Evasion (%) 40 Recoil Reduction 2 Authchip Count 3 Item Schematics ----------------- Med. Storage Unit | -10/Materials | Hacked Robot Schematics ------------------ None Fabricated ------------ Nothing Alien Tech Used ----------------- None Achievements -------------- None Challenges ------------ None Game ------ Seed PortableStructuralWings Manual? 0 Play Time 00:31:28 Cumulative 24.0 hours Start 2024.06.01 @ 15:25:07 End 2024.06.01 @ 16:06:16 Sessions 1 Manual Loads 0 Difficulty Rogue Special Mode None Game No. 10 Rogue 10 Adventurer 0 Explorer 0 Win Type - Total 0 Types 0/0/0/0/0/0/0/0/0 Lore% 16 Gallery% 23 Achievement% 22 Wizard Run 0 Options --------- Layout 0 ASCII 0 Keyboard 0 Movement Mouse Keybinds 0 Fullscreen 1 Font 18/SmallcapsGlow Map View 76x50 Zoom Use 8% Tactical HUD 0 Map Filters NONE Filters NONE Steam 1 RUN: 5bf9d279-328b-4377-b0ff-e2d404433f6d